[Event "Titled Tuesday Blitz April 12 Late 2022"]
[White "Quintiliano Pinto, Renato R."]
[Black "O`Gorman, Tom"]
[WhiteFideId "2117568"]
[BlackFideId "2508249"]
[WhiteElo "2439"]
[BlackElo "2247"]
[Result "1/2-1/2"]
[Round "08"]
[TimeControl "180+1"]
[Date "2022.04.12"]
[WhiteClock "0:00:12"]
[BlackClock "0:00:15"]

1. e4 {[%clk 0:03:00]}  c5 {[%clk 0:02:58]} 2. Nf3 {[%clk 0:03:00]}  d6 {[%clk 0:02:59]} 3. c3 {[%clk 0:03:00]}  Nf6 {[%clk 0:02:58]} 4. Be2 {[%clk 0:02:59]}  g6 {[%clk 0:02:58]} 5. O-O {[%clk 0:03:00]}  Bg7 {[%clk 0:02:59]} 6. Bb5+ {[%clk 0:02:58]}  Nc6 {[%clk 0:02:59]} 7. Re1 {[%clk 0:02:57]}  O-O {[%clk 0:02:58]} 8. h3 {[%clk 0:02:57]}  e5 {[%clk 0:02:52]} 9. d3 {[%clk 0:02:56]}  Bd7 {[%clk 0:02:52]} 10. Nbd2 {[%clk 0:02:55]}  a6 {[%clk 0:02:52]} 11. Ba4 {[%clk 0:02:55]}  Qe7 {[%clk 0:02:52]} 12. Bc2 {[%clk 0:02:52]}  h6 {[%clk 0:02:50]} 13. a4 {[%clk 0:02:51]}  Be6 {[%clk 0:02:48]} 14. Nf1 {[%clk 0:02:34]}  Rfd8 {[%clk 0:02:46]} 15. Ng3 {[%clk 0:02:30]}  Qc7 {[%clk 0:02:39]} 16. Qe2 {[%clk 0:02:28]}  d5 {[%clk 0:02:27]} 17. Be3 {[%clk 0:02:19]}  d4 {[%clk 0:02:26]} 18. cxd4 {[%clk 0:02:19]}  cxd4 {[%clk 0:02:26]} 19. Bd2 {[%clk 0:02:19]}  b5 {[%clk 0:02:23]} 20. Rec1 {[%clk 0:02:16]}  Qb7 {[%clk 0:02:22]} 21. Qd1 {[%clk 0:02:14]}  bxa4 {[%clk 0:02:12]} 22. Bxa4 {[%clk 0:02:13]}  Rac8 {[%clk 0:01:59]} 23. Bxc6 {[%clk 0:01:55]}  Rxc6 {[%clk 0:02:00]} 24. Rxc6 {[%clk 0:01:55]}  Qxc6 {[%clk 0:02:00]} 25. Qa4 {[%clk 0:01:55]}  Qxa4 {[%clk 0:01:45]} 26. Rxa4 {[%clk 0:01:56]}  Nd7 {[%clk 0:01:43]} 27. b4 {[%clk 0:01:53]}  Rb8 {[%clk 0:01:36]} 28. Rxa6 {[%clk 0:01:51]}  Bf8 {[%clk 0:01:36]} 29. Nf1 {[%clk 0:01:29]}  Bxb4 {[%clk 0:01:32]} 30. Bxh6 {[%clk 0:01:16]}  Nc5 {[%clk 0:01:31]} 31. Rxe6 {[%clk 0:01:16]}  Nxe6 {[%clk 0:01:25]} 32. Nxe5 {[%clk 0:01:17]}  g5 {[%clk 0:01:16]} 33. Ng3 {[%clk 0:01:07]}  Kh7 {[%clk 0:01:06]} 34. Nf5 {[%clk 0:01:06]}  f6 {[%clk 0:01:01]} 35. Nd7 {[%clk 0:01:05]}  Ra8 {[%clk 0:00:53]} 36. Nxf6+ {[%clk 0:01:04]}  Kg6 {[%clk 0:00:54]} 37. Nd5 {[%clk 0:00:58]}  Bd2 {[%clk 0:00:53]} 38. h4 {[%clk 0:00:57]}  Ra3 {[%clk 0:00:49]} 39. hxg5 {[%clk 0:00:55]}  Bxg5 {[%clk 0:00:50]} 40. Bxg5 {[%clk 0:00:53]}  Kxg5 {[%clk 0:00:50]} 41. g3 {[%clk 0:00:32]}  Rxd3 {[%clk 0:00:49]} 42. Kg2 {[%clk 0:00:32]}  Rd2 {[%clk 0:00:47]} 43. Kf3 {[%clk 0:00:31]}  Kg6 {[%clk 0:00:44]} 44. Nf4+ {[%clk 0:00:25]}  Nxf4 {[%clk 0:00:42]} 45. gxf4 {[%clk 0:00:26]}  Kf6 {[%clk 0:00:31]} 46. Ng3 {[%clk 0:00:23]}  Ra2 {[%clk 0:00:28]} 47. e5+ {[%clk 0:00:22]}  Ke6 {[%clk 0:00:26]} 48. Ke4 {[%clk 0:00:23]}  Rxf2 {[%clk 0:00:10]} 49. f5+ {[%clk 0:00:23]}  Ke7 {[%clk 0:00:11]} 50. Kxd4 {[%clk 0:00:17]}  Rf3 {[%clk 0:00:11]} 51. f6+ {[%clk 0:00:18]}  Ke6 {[%clk 0:00:11]} 52. Ne4 {[%clk 0:00:18]}  Rf4 {[%clk 0:00:11]} 53. Ke3 {[%clk 0:00:11]}  Kxe5 {[%clk 0:00:11]} 54. Nc5 {[%clk 0:00:10]}  Rf1 {[%clk 0:00:11]} 55. f7 {[%clk 0:00:09]}  Rxf7 {[%clk 0:00:10]} 56. Nd3+ {[%clk 0:00:10]}  Kd5 {[%clk 0:00:10]} 57. Nf4+ {[%clk 0:00:10]}  Kc5 {[%clk 0:00:10]} 58. Ke4 {[%clk 0:00:11]}  Ra7 {[%clk 0:00:11]} 59. Kf5 {[%clk 0:00:11]}  Ra4 {[%clk 0:00:11]} 60. Ke5 {[%clk 0:00:11]}  Ra1 {[%clk 0:00:12]} 61. Ne6+ {[%clk 0:00:11]}  Kc4 {[%clk 0:00:11]} 62. Nf4 {[%clk 0:00:11]}  Re1+ {[%clk 0:00:12]} 63. Kf5 {[%clk 0:00:12]}  Kd4 {[%clk 0:00:12]} 64. Ne6+ {[%clk 0:00:12]}  Kd3 {[%clk 0:00:13]} 65. Kf6 {[%clk 0:00:12]}  Ke4 {[%clk 0:00:13]} 66. Ng5+ {[%clk 0:00:12]}  Kd5 {[%clk 0:00:14]} 67. Kf5 {[%clk 0:00:12]}  Rf1+ {[%clk 0:00:14]} 68. Kg4 {[%clk 0:00:12]}  Ke5 {[%clk 0:00:15]} 69. Nf3+ {[%clk 0:00:12]}  Ke4 {[%clk 0:00:15]} 70. Nd2+ {[%clk 0:00:11]}  Ke3 {[%clk 0:00:15]} 71. Nxf1+ {[%clk 0:00:12]} 1/2-1/2


[Site "https://www.chess.com"]

[Event "Titled Tuesday Blitz April 12 Late 2022"]
[White "Rego, Vinicius V. de Almeida"]
[Black "Estrada Nieto, Julian"]
[WhiteFideId "2106485"]
[BlackFideId "5101018"]
[WhiteElo "2345"]
[BlackElo "2252"]
[Result "0-1"]
[Round "08"]
[TimeControl "180+1"]
[Date "2022.04.13"]
[WhiteClock "0:00:09"]
[BlackClock "0:00:51"]

1. Nf3 {[%clk 0:02:55]}  Nf6 {[%clk 0:02:59]} 2. c4 {[%clk 0:02:52]}  c6 {[%clk 0:02:48]} 3. g3 {[%clk 0:02:46]}  d5 {[%clk 0:02:48]} 4. Bg2 {[%clk 0:02:44]}  Bg4 {[%clk 0:02:48]} 5. Ne5 {[%clk 0:02:40]}  Be6 {[%clk 0:02:48]} 6. cxd5 {[%clk 0:02:37]}  Bxd5 {[%clk 0:02:48]} 7. Nf3 {[%clk 0:02:35]}  e5 {[%clk 0:02:39]} 8. Nc3 {[%clk 0:02:33]}  e4 {[%clk 0:02:27]} 9. Nd4 {[%clk 0:02:31]}  e3 {[%clk 0:02:21]} 10. Nxd5 {[%clk 0:02:29]}  exf2+ {[%clk 0:02:20]} 11. Kxf2 {[%clk 0:02:30]}  Nxd5 {[%clk 0:02:17]} 12. Rf1 {[%clk 0:02:30]}  Bc5 {[%clk 0:02:17]} 13. e3 {[%clk 0:02:29]}  O-O {[%clk 0:02:11]} 14. Nb3 {[%clk 0:02:28]}  Bb6 {[%clk 0:02:00]} 15. d4 {[%clk 0:02:10]}  Nd7 {[%clk 0:01:56]} 16. e4 {[%clk 0:01:36]}  Ne7 {[%clk 0:01:48]} 17. Be3 {[%clk 0:01:35]}  f5 {[%clk 0:01:46]} 18. e5 {[%clk 0:01:35]}  Ng6 {[%clk 0:01:43]} 19. Kg1 {[%clk 0:01:32]}  Ndxe5 {[%clk 0:01:36]} 20. Qe2 {[%clk 0:01:31]}  Ng4 {[%clk 0:01:34]} 21. Bf4 {[%clk 0:01:29]}  Bxd4+ {[%clk 0:01:15]} 22. Nxd4 {[%clk 0:01:16]}  Qxd4+ {[%clk 0:01:14]} 23. Kh1 {[%clk 0:01:17]}  Rae8 {[%clk 0:01:10]} 24. Qc2 {[%clk 0:01:02]}  Nxf4 {[%clk 0:01:03]} 25. Rxf4 {[%clk 0:00:45]}  Qb6 {[%clk 0:00:55]} 26. h3 {[%clk 0:00:43]}  Ne3 {[%clk 0:00:54]} 27. Qd3 {[%clk 0:00:40]}  Nxg2 {[%clk 0:00:53]} 28. Kxg2 {[%clk 0:00:41]}  Qxb2+ {[%clk 0:00:52]} 29. Rf2 {[%clk 0:00:09]}  Qxa1 {[%clk 0:00:51]} 0-1


[Site "https://www.chess.com"]

[Event "Titled Tuesday Blitz April 12 Late 2022"]
[White "Santos Ruiz, Miguel"]
[Black "Bluebaum, Matthias"]
[WhiteFideId "22291482"]
[BlackFideId "24651516"]
[WhiteElo "2486"]
[BlackElo "2550"]
[Result "0-1"]
[Round "08"]
[TimeControl "180+1"]
[Date "2022.04.12"]
[WhiteClock "0:00:06"]
[BlackClock "0:00:24"]

1. e4 {[%clk 0:03:00]}  c6 {[%clk 0:03:00]} 2. d4 {[%clk 0:03:00]}  d5 {[%clk 0:03:01]} 3. exd5 {[%clk 0:03:01]}  cxd5 {[%clk 0:03:01]} 4. Bd3 {[%clk 0:03:01]}  Nc6 {[%clk 0:03:01]} 5. c3 {[%clk 0:03:02]}  Qc7 {[%clk 0:03:02]} 6. Na3 {[%clk 0:03:00]}  a6 {[%clk 0:03:00]} 7. Nf3 {[%clk 0:02:59]}  Bg4 {[%clk 0:03:00]} 8. Nc2 {[%clk 0:02:54]}  e6 {[%clk 0:03:00]} 9. Ne3 {[%clk 0:02:53]}  Bh5 {[%clk 0:03:01]} 10. g3 {[%clk 0:02:54]}  Bd6 {[%clk 0:03:00]} 11. Ng2 {[%clk 0:02:54]}  Bg6 {[%clk 0:02:58]} 12. Bxg6 {[%clk 0:02:53]}  hxg6 {[%clk 0:02:59]} 13. Bf4 {[%clk 0:02:53]}  Nf6 {[%clk 0:02:58]} 14. O-O {[%clk 0:02:51]}  Ne4 {[%clk 0:02:52]} 15. a4 {[%clk 0:02:46]}  Bxf4 {[%clk 0:02:41]} 16. Nxf4 {[%clk 0:02:45]}  g5 {[%clk 0:02:42]} 17. Nd3 {[%clk 0:02:46]}  f6 {[%clk 0:02:37]} 18. Nd2 {[%clk 0:02:41]}  g4 {[%clk 0:02:17]} 19. Nxe4 {[%clk 0:02:28]}  dxe4 {[%clk 0:02:18]} 20. Nc5 {[%clk 0:02:29]}  f5 {[%clk 0:02:18]} 21. Nxe6 {[%clk 0:02:26]}  Qf7 {[%clk 0:02:17]} 22. Qb3 {[%clk 0:02:00]}  Rh3 {[%clk 0:02:02]} 23. Ra3 {[%clk 0:01:36]}  Rh6 {[%clk 0:01:43]} 24. Nc5 {[%clk 0:01:17]}  g5 {[%clk 0:01:26]} 25. Re1 {[%clk 0:00:57]}  b6 {[%clk 0:01:17]} 26. Nxe4 {[%clk 0:00:34]}  fxe4 {[%clk 0:01:16]} 27. Rxe4+ {[%clk 0:00:33]}  Ne7 {[%clk 0:01:16]} 28. Qxf7+ {[%clk 0:00:22]}  Kxf7 {[%clk 0:01:17]} 29. Rxg4 {[%clk 0:00:23]}  Kf6 {[%clk 0:01:11]} 30. Rb3 {[%clk 0:00:21]}  Kf5 {[%clk 0:01:12]} 31. f3 {[%clk 0:00:17]}  Rah8 {[%clk 0:01:12]} 32. Re4 {[%clk 0:00:17]}  Rxh2 {[%clk 0:00:50]} 33. g4+ {[%clk 0:00:09]}  Kf6 {[%clk 0:00:51]} 34. Rxb6+ {[%clk 0:00:10]}  Kf7 {[%clk 0:00:52]} 35. Rb7 {[%clk 0:00:10]}  Rh1+ {[%clk 0:00:48]} 36. Kf2 {[%clk 0:00:09]}  R8h2+ {[%clk 0:00:48]} 37. Ke3 {[%clk 0:00:09]}  Re1+ {[%clk 0:00:45]} 38. Kd3 {[%clk 0:00:10]}  Rxe4 {[%clk 0:00:46]} 39. fxe4 {[%clk 0:00:10]}  Rg2 {[%clk 0:00:45]} 40. d5 {[%clk 0:00:10]}  Ke8 {[%clk 0:00:42]} 41. c4 {[%clk 0:00:08]}  Ng6 {[%clk 0:00:38]} 42. c5 {[%clk 0:00:07]}  Rxg4 {[%clk 0:00:33]} 43. b4 {[%clk 0:00:06]}  Rg1 {[%clk 0:00:32]} 44. b5 {[%clk 0:00:07]}  axb5 {[%clk 0:00:33]} 45. axb5 {[%clk 0:00:06]}  g4 {[%clk 0:00:34]} 46. Rg7 {[%clk 0:00:05]}  Ne5+ {[%clk 0:00:31]} 47. Kd4 {[%clk 0:00:05]}  Kf8 {[%clk 0:00:31]} 48. Kxe5 {[%clk 0:00:03]}  Kxg7 {[%clk 0:00:32]} 49. c6 {[%clk 0:00:04]}  g3 {[%clk 0:00:31]} 50. c7 {[%clk 0:00:05]}  Rc1 {[%clk 0:00:31]} 51. b6 {[%clk 0:00:05]}  g2 {[%clk 0:00:29]} 52. b7 {[%clk 0:00:06]}  g1=Q {[%clk 0:00:30]} 53. c8=Q {[%clk 0:00:05]}  Qg3+ {[%clk 0:00:25]} 54. Kd4 {[%clk 0:00:06]}  Qf2+ {[%clk 0:00:24]} 55. Ke5 {[%clk 0:00:06]}  Qf6# {[%clk 0:00:24]} 0-1


[Site "https://www.chess.com"]

[Event "Titled Tuesday Blitz April 12 Late 2022"]
[White "Sarana, Alexey"]
[Black "Molenda, Marcin"]
[WhiteFideId "24133795"]
[BlackFideId "1173065"]
[WhiteElo "2666"]
[BlackElo "2067"]
[Result "1-0"]
[Round "08"]
[TimeControl "180+1"]
[Date "2022.04.12"]
[WhiteClock "0:02:18"]
[BlackClock "0:00:47"]

1. d4 {[%clk 0:03:00]}  d5 {[%clk 0:02:54]} 2. c4 {[%clk 0:03:00]}  c6 {[%clk 0:02:54]} 3. Nc3 {[%clk 0:02:59]}  Nf6 {[%clk 0:02:54]} 4. Nf3 {[%clk 0:02:59]}  e6 {[%clk 0:02:55]} 5. g3 {[%clk 0:02:52]}  Nbd7 {[%clk 0:02:53]} 6. Bg2 {[%clk 0:02:52]}  dxc4 {[%clk 0:02:53]} 7. O-O {[%clk 0:02:52]}  b5 {[%clk 0:02:52]} 8. e4 {[%clk 0:02:52]}  Bb7 {[%clk 0:02:51]} 9. e5 {[%clk 0:02:50]}  Nd5 {[%clk 0:02:50]} 10. Ng5 {[%clk 0:02:51]}  h6 {[%clk 0:02:39]} 11. Qh5 {[%clk 0:02:49]}  g6 {[%clk 0:02:13]} 12. Qh3 {[%clk 0:02:49]}  Nxc3 {[%clk 0:02:03]} 13. bxc3 {[%clk 0:02:47]}  Qb6 {[%clk 0:01:59]} 14. Nxe6 {[%clk 0:02:43]}  fxe6 {[%clk 0:01:59]} 15. Qxe6+ {[%clk 0:02:43]}  Kd8 {[%clk 0:01:58]} 16. Be3 {[%clk 0:02:35]}  Kc7 {[%clk 0:01:25]} 17. d5 {[%clk 0:02:33]}  Bc5 {[%clk 0:01:25]} 18. d6+ {[%clk 0:02:32]}  Kc8 {[%clk 0:01:22]} 19. Bh3 {[%clk 0:02:30]}  Rd8 {[%clk 0:01:11]} 20. Bxc5 {[%clk 0:02:28]}  Qxc5 {[%clk 0:01:10]} 21. Qe7 {[%clk 0:02:29]}  Qd5 {[%clk 0:00:58]} 22. e6 {[%clk 0:02:27]}  Qg5 {[%clk 0:00:47]} 23. exd7+ {[%clk 0:02:24]}  Kb8 {[%clk 0:00:47]} 24. Rfe1 {[%clk 0:02:21]}  c5 {[%clk 0:00:47]} 25. Qxg5 {[%clk 0:02:18]}  hxg5 {[%clk 0:00:47]} 26. Re8 {[%clk 0:02:18]} 1-0


[Site "https://www.chess.com"]

[Event "Titled Tuesday Blitz April 12 Late 2022"]
[White "Schekachikhin, Maksim"]
[Black "Vusatiuk, Vladimir"]
[WhiteFideId "24177830"]
[BlackFideId "14118610"]
[WhiteElo "2640"]
[BlackElo "2532"]
[Result "0-1"]
[Round "08"]
[TimeControl "180+1"]
[Date "2022.04.13"]
[WhiteClock "0:01:33"]
[BlackClock "0:00:10"]

1. d4 {[%clk 0:03:00]}  Nf6 {[%clk 0:02:59]} 2. c4 {[%clk 0:02:58]}  e6 {[%clk 0:02:59]} 3. Nc3 {[%clk 0:02:59]}  Bb4 {[%clk 0:02:59]} 4. e3 {[%clk 0:02:59]}  O-O {[%clk 0:02:58]} 5. Bd3 {[%clk 0:02:59]}  d5 {[%clk 0:02:58]} 6. Nf3 {[%clk 0:02:59]}  c5 {[%clk 0:02:58]} 7. O-O {[%clk 0:02:59]}  dxc4 {[%clk 0:02:58]} 8. Bxc4 {[%clk 0:02:59]}  cxd4 {[%clk 0:02:48]} 9. exd4 {[%clk 0:02:58]}  b6 {[%clk 0:02:45]} 10. Bg5 {[%clk 0:02:58]}  Bb7 {[%clk 0:02:34]} 11. Ne5 {[%clk 0:02:58]}  Nc6 {[%clk 0:02:15]} 12. Nxf7 {[%clk 0:02:46]}  Kxf7 {[%clk 0:02:03]} 13. d5 {[%clk 0:02:45]}  Ne7 {[%clk 0:01:34]} 14. dxe6+ {[%clk 0:02:43]}  Kg8 {[%clk 0:01:34]} 15. Qb3 {[%clk 0:02:36]}  Bxc3 {[%clk 0:01:28]} 16. bxc3 {[%clk 0:02:35]}  Qc7 {[%clk 0:01:18]} 17. Rad1 {[%clk 0:02:32]}  Rad8 {[%clk 0:01:09]} 18. Bxf6 {[%clk 0:02:29]}  Rxf6 {[%clk 0:01:01]} 19. Rd7 {[%clk 0:02:28]}  Rxd7 {[%clk 0:00:48]} 20. exd7+ {[%clk 0:02:29]}  Kh8 {[%clk 0:00:43]} 21. Rd1 {[%clk 0:02:28]}  Rd6 {[%clk 0:00:42]} 22. Bb5 {[%clk 0:02:27]}  Bc6 {[%clk 0:00:33]} 23. h4 {[%clk 0:02:01]}  Qxd7 {[%clk 0:00:25]} 24. Rxd6 {[%clk 0:01:57]}  Qxd6 {[%clk 0:00:25]} 25. Bxc6 {[%clk 0:01:57]}  Nxc6 {[%clk 0:00:25]} 26. Qf7 {[%clk 0:01:57]}  h6 {[%clk 0:00:19]} 27. h5 {[%clk 0:01:55]}  Ne5 {[%clk 0:00:17]} 28. Qe8+ {[%clk 0:01:54]}  Kh7 {[%clk 0:00:18]} 29. a4 {[%clk 0:01:49]}  Qf6 {[%clk 0:00:15]} 30. f3 {[%clk 0:01:48]}  Qg5 {[%clk 0:00:13]} 31. Kf2 {[%clk 0:01:44]}  Qd2+ {[%clk 0:00:13]} 32. Kg3 {[%clk 0:01:43]}  Qg5+ {[%clk 0:00:13]} 33. Kf2 {[%clk 0:01:43]}  Nd3+ {[%clk 0:00:14]} 34. Kg1 {[%clk 0:01:36]}  Qf5 {[%clk 0:00:10]} 35. Kh2 {[%clk 0:01:31]}  Qe5+ {[%clk 0:00:09]} 36. Qxe5 {[%clk 0:01:30]}  Nxe5 {[%clk 0:00:10]} 37. Kg3 {[%clk 0:01:30]}  g5 {[%clk 0:00:09]} 38. hxg6+ {[%clk 0:01:29]}  Kxg6 {[%clk 0:00:09]} 39. Kf4 {[%clk 0:01:30]}  Kf6 {[%clk 0:00:09]} 40. g4 {[%clk 0:01:30]}  Nd3+ {[%clk 0:00:08]} 41. Ke3 {[%clk 0:01:29]}  Nb2 {[%clk 0:00:08]} 42. a5 {[%clk 0:01:30]}  bxa5 {[%clk 0:00:09]} 43. f4 {[%clk 0:01:29]}  a4 {[%clk 0:00:08]} 44. g5+ {[%clk 0:01:29]}  hxg5 {[%clk 0:00:08]} 45. fxg5+ {[%clk 0:01:30]}  Kxg5 {[%clk 0:00:09]} 46. Kd2 {[%clk 0:01:31]}  a3 {[%clk 0:00:09]} 47. Kc2 {[%clk 0:01:31]}  Kf4 {[%clk 0:00:10]} 48. Kb3 {[%clk 0:01:31]}  Ke5 {[%clk 0:00:09]} 49. Kxa3 {[%clk 0:01:31]}  Nc4+ {[%clk 0:00:10]} 50. Kb4 {[%clk 0:01:32]}  Kd5 {[%clk 0:00:07]} 51. Kb5 {[%clk 0:01:32]}  a5 {[%clk 0:00:07]} 52. Ka4 {[%clk 0:01:31]}  Kc5 {[%clk 0:00:08]} 53. Kb3 {[%clk 0:01:32]}  Kb5 {[%clk 0:00:08]} 54. Ka2 {[%clk 0:01:32]}  Ka4 {[%clk 0:00:08]} 55. Kb1 {[%clk 0:01:32]}  Kb3 {[%clk 0:00:09]} 56. Ka1 {[%clk 0:01:33]}  a4 {[%clk 0:00:10]} 57. Kb1 {[%clk 0:01:33]}  a3 {[%clk 0:00:11]} 58. Ka1 {[%clk 0:01:34]}  Kxc3 {[%clk 0:00:06]} 59. Ka2 {[%clk 0:01:34]}  Kb4 {[%clk 0:00:07]} 60. Ka1 {[%clk 0:01:34]}  Na5 {[%clk 0:00:07]} 61. Ka2 {[%clk 0:01:34]}  Ka4 {[%clk 0:00:08]} 62. Ka1 {[%clk 0:01:34]}  Kb3 {[%clk 0:00:09]} 63. Kb1 {[%clk 0:01:34]}  Nc6 {[%clk 0:00:09]} 64. Ka1 {[%clk 0:01:33]}  Nb4 {[%clk 0:00:09]} 65. Kb1 {[%clk 0:01:33]}  a2+ {[%clk 0:00:10]} 66. Ka1 {[%clk 0:01:33]}  Nc2# {[%clk 0:00:10]} 0-1


[Site "https://www.chess.com"]

[Event "Titled Tuesday Blitz April 12 Late 2022"]
[White "Sokolovsky, Yahli"]
[Black "Swicarz, Maciej"]
[WhiteFideId "2820242"]
[BlackFideId "1113585"]
[WhiteElo "1770"]
[BlackElo "2057"]
[Result "1-0"]
[Round "08"]
[TimeControl "180+1"]
[Date "2022.04.13"]
[WhiteClock "0:00:10"]
[BlackClock "0:00:08"]

1. b3 {[%clk 0:03:00]}  e5 {[%clk 0:02:57]} 2. Bb2 {[%clk 0:03:01]}  Nc6 {[%clk 0:02:57]} 3. e3 {[%clk 0:03:00]}  a6 {[%clk 0:02:57]} 4. d4 {[%clk 0:03:00]}  exd4 {[%clk 0:02:54]} 5. exd4 {[%clk 0:03:01]}  d5 {[%clk 0:02:55]} 6. Nf3 {[%clk 0:03:01]}  Nf6 {[%clk 0:02:54]} 7. a3 {[%clk 0:03:02]}  Bg4 {[%clk 0:02:52]} 8. Be2 {[%clk 0:03:01]}  Be7 {[%clk 0:02:50]} 9. Ne5 {[%clk 0:02:58]}  Nxe5 {[%clk 0:02:42]} 10. dxe5 {[%clk 0:02:57]}  Bxe2 {[%clk 0:02:42]} 11. Qxe2 {[%clk 0:02:58]}  Ne4 {[%clk 0:02:37]} 12. O-O {[%clk 0:02:51]}  O-O {[%clk 0:02:36]} 13. f3 {[%clk 0:02:43]}  Bc5+ {[%clk 0:02:24]} 14. Kh1 {[%clk 0:02:44]}  Ng5 {[%clk 0:02:13]} 15. Nd2 {[%clk 0:02:37]}  Re8 {[%clk 0:01:52]} 16. f4 {[%clk 0:02:35]}  Ne6 {[%clk 0:01:52]} 17. f5 {[%clk 0:02:26]}  Nd4 {[%clk 0:01:52]} 18. Qd3 {[%clk 0:01:54]}  Nc6 {[%clk 0:01:51]} 19. e6 {[%clk 0:01:55]}  fxe6 {[%clk 0:01:45]} 20. f6 {[%clk 0:01:55]}  Rf8 {[%clk 0:01:23]} 21. fxg7 {[%clk 0:01:06]}  Rxf1+ {[%clk 0:01:24]} 22. Rxf1 {[%clk 0:01:06]}  Qg5 {[%clk 0:01:17]} 23. Nf3 {[%clk 0:00:49]}  Qh5 {[%clk 0:01:12]} 24. c4 {[%clk 0:00:24]}  dxc4 {[%clk 0:00:59]} 25. Qxc4 {[%clk 0:00:22]}  Qd5 {[%clk 0:00:57]} 26. Qxd5 {[%clk 0:00:19]}  exd5 {[%clk 0:00:58]} 27. Ng5 {[%clk 0:00:20]}  d4 {[%clk 0:00:49]} 28. Ne6 {[%clk 0:00:19]}  b6 {[%clk 0:00:38]} 29. Bc1 {[%clk 0:00:14]}  Re8 {[%clk 0:00:32]} 30. Bh6 {[%clk 0:00:12]}  d3 {[%clk 0:00:19]} 31. Nxc5 {[%clk 0:00:10]}  Re1 {[%clk 0:00:08]} 32. Rxe1 {[%clk 0:00:10]}  Kf7 {[%clk 0:00:08]} 33. Rf1+ {[%clk 0:00:10]}  Kg6 {[%clk 0:00:08]} 34. g8=Q+ {[%clk 0:00:10]} 1-0


[Site "https://www.chess.com"]